fUST/lending_fUST_20250817
["ID","MTS","AMOUNT","RATE_DAILY","PERIOD"]
[379914318,1755439848674,-1067.92,0.00020213,2]
[379914320,1755439848683,-2687.29,0.00020213,2]
[379914322,1755439848693,-480.0,0.00020213,2]
[379914324,1755439848703,-543.11,0.00020213,2]
[379914326,1755439848712,-151.0,0.00020216,2]
[379914328,1755439848721,-151.0,0.00020216,2]
[379914330,1755439848731,-151.0,0.00020216,2]
[379914332,1755439848741,-151.0,0.00020216,2]
[379914334,1755439848750,-151.0,0.00020216,2]
[379914336,1755439848760,-151.0,0.00020216,2]
[379914338,1755439848770,-151.0,0.00020216,2]
[379914340,1755439848779,-2000.0,0.00020216,2]
[379914342,1755439848789,-2000.0,0.00020216,2]
[379914356,1755439848902,-2000.0,0.00020216,2]
[379914358,1755439848925,-2000.0,0.00020216,2]
[379914360,1755439848934,-2000.0,0.00020216,2]
[379914362,1755439848944,-2000.0,0.00020216,2]
[379914364,1755439848954,-2000.0,0.00020216,2]
[379914366,1755439848964,-151.0,0.00020242,2]
[379914368,1755439848973,-151.0,0.00020242,2]
[379914370,1755439848982,-151.0,0.00020242,2]
[379914372,1755439848992,-151.0,0.00020261,2]
[379914374,1755439849001,-151.0,0.00020261,2]
[379914375,1755439849010,-350.45,0.00020263,2]
[379914377,1755439849019,-420.5,0.00020265,2]
[379914379,1755439849029,-368.66964933,0.00020273,2]
[379914381,1755439849039,-1473.20391872,0.00020273,2]
[379914383,1755439849048,-190.295796,0.00020273,2]
[379914385,1755439849057,-151.0,0.00020273,2]
[379914387,1755439849067,-151.0,0.00020273,2]
[379914389,1755439849077,-151.0,0.00020273,2]
[379914391,1755439849086,-151.0,0.00020274,2]
[379914393,1755439849096,-1679.0,0.00020274,2]
[379914395,1755439849105,-151.0,0.00020274,2]
[379914397,1755439849114,-500.0,0.00020274,2]
[379914399,1755439849124,-154.5752663,0.00020274,2]
[379914401,1755439849134,-151.0,0.00020274,2]
[379914403,1755439849143,-500.0,0.00020274,2]
[379914405,1755439849153,-151.000001,0.00020274,2]
[379914407,1755439849162,-151.0,0.00020274,2]
[379914408,1755439849171,-151.0,0.00020274,2]
[379914410,1755439849181,-151.0,0.00020274,2]
[379914412,1755439849191,-500.0,0.00020274,2]
[379914414,1755439849200,-261.49588744,0.00020274,2]
[379914416,1755439849210,-151.0,0.00020274,2]
[379914418,1755439849220,-151.0,0.00020274,2]
[379914420,1755439849229,-151.0,0.00020274,2]
[379914422,1755439849239,-151.0,0.00020274,2]
[379914424,1755439849249,-151.0,0.00020277,2]
[379914426,1755439849259,-151.0,0.00020277,2]
[379914428,1755439849269,-151.497329,0.00020282,2]
[379914430,1755439849278,-151.0,0.00020282,2]
[379914432,1755439849288,-151.0,0.00020282,2]
[379914434,1755439849297,-238.684465,0.00020282,2]
[379914436,1755439849307,-151.0,0.00020282,2]
[379914438,1755439849317,-151.0,0.00020282,2]
[379914440,1755439849326,-249.08017,0.00020282,2]
[379914442,1755439849335,-151.0,0.00020282,2]
[379914444,1755439849346,-229.388156,0.00020282,2]
[379914446,1755439849355,-151.0,0.00020282,2]
[379914448,1755439849365,-151.0,0.00020282,2]
[379914450,1755439849375,-151.0,0.00020282,2]
[379914452,1755439849384,-237.465888,0.00020282,2]
[379914454,1755439849394,-480.0,0.00020282,2]
[379914456,1755439849403,-866.62,0.00020282,2]
[379914458,1755439849413,-480.0,0.00020282,2]
[379914460,1755439849422,-4038.63,0.00020282,2]
[379914462,1755439849432,-278.560994,0.00020282,2]
[379914464,1755439849442,-278.560994,0.00020282,2]
[379914466,1755439849455,-712.88,0.00020285,2]
[379914468,1755439849464,-564.69,0.00020285,2]
[379914470,1755439849474,-525.02,0.00020285,2]
[379914472,1755439849483,-480.0,0.00020286,2]
[379914474,1755439849492,-209.028915,0.00020286,2]
[379914476,1755439849502,-480.0,0.00020286,2]
[379914478,1755439849511,-151.0,0.00020286,2]
[379914479,1755439849521,-1490.66,0.00020286,2]
[379914482,1755439849532,-1939.25,0.00020286,2]
[379914483,1755439849541,-522.821847,0.00020287,2]
[379914486,1755439849551,-522.821847,0.00020287,2]
[379914487,1755439849561,-826.863756,0.00020287,2]
[379914490,1755439849570,-826.863756,0.00020287,2]
[379914491,1755439849580,-200.0,0.000203,2]
[379914493,1755439849589,-151.0,0.000203,2]
[379914495,1755439849599,-151.0,0.000203,3]
[379914497,1755439849608,-151.0,0.000203,3]
[379914499,1755439849617,-151.0,0.000203,3]
[379914501,1755439849626,-11131.59102156,0.000203,2]
[379914503,1755439849636,-168.0,0.00020301,2]
[379914505,1755439849645,-413.4927831,0.00020302,2]
[379914507,1755439849655,-413.4927831,0.00020302,2]
[379914509,1755439849664,-500.0,0.00020332,2]
[379914511,1755439849673,-151.0,0.00020332,2]
[379914513,1755439849683,-684.232308,0.0002034,2]
[379914515,1755439849692,-684.232308,0.0002034,2]
[379914517,1755439849701,-327.837231,0.0002034,2]
[379914519,1755439849711,-327.837231,0.0002034,2]
[379914521,1755439849720,-190.295796,0.0002035,2]
[379914523,1755439849729,-227.68549792,0.00020356,2]
[379914525,1755439849740,-206.0,0.0002037,2]
[379914527,1755439849749,-480.0,0.00020387,2]
[379914529,1755439849758,-480.0,0.00020388,2]
[379914531,1755439849767,-564.76,0.00020388,2]
[379914533,1755439849777,-480.0,0.00020388,2]
[379914535,1755439849786,-480.0,0.00020388,2]
[379914537,1755439849795,-151.0,0.00020388,2]
[379914539,1755439849804,-151.0,0.00020388,2]
[379914541,1755439849814,-151.0,0.00020388,2]
[379914543,1755439849823,-480.0,0.00020388,2]
[379914545,1755439849833,-480.0,0.00020388,2]
[379914547,1755439849842,-480.0,0.00020388,2]
[379914549,1755439849851,-2026.1,0.00020388,2]
[379914551,1755439849860,-614.56,0.00020388,2]
[379914553,1755439849870,-480.0,0.00020388,2]
[379914555,1755439849879,-648.05,0.00020388,2]
[379914557,1755439849888,-480.0,0.00020388,2]
[379914558,1755439849897,-799.94,0.00020388,2]
[379914560,1755439849906,-526.49,0.00020388,2]
[379914562,1755439849915,-729.66,0.00020389,2]
[379914564,1755439849925,-480.0,0.00020389,2]
[379914566,1755439849934,-510.29,0.00020389,2]
[379914568,1755439849943,-542.44,0.00020389,2]
[379914570,1755439849953,-872.07,0.00020389,2]
[379914572,1755439849963,-480.0,0.00020389,2]
[379914574,1755439849972,-480.0,0.00020389,2]
[379914576,1755439849982,-867.03,0.00020389,2]
[379914578,1755439849991,-480.0,0.00020389,2]
[379914580,1755439850000,-516.77,0.00020389,2]
[379914582,1755439850009,-480.0,0.00020389,2]
[379914584,1755439850019,-480.0,0.00020389,2]
[379914586,1755439850028,-633.1,0.00020389,2]
[379914588,1755439850038,-480.0,0.00020389,2]
[379914590,1755439850047,-480.0,0.00020389,2]
[379914592,1755439850056,-480.0,0.00020389,2]
[379914594,1755439850066,-480.0,0.00020389,2]
[379914596,1755439850076,-652.47,0.00020389,2]
[379914598,1755439850086,-480.0,0.00020389,2]
[379914600,1755439850095,-151.0,0.00020389,2]
[379914602,1755439850104,-1566.1,0.00020389,2]
[379914603,1755439850113,-6080.88,0.00020389,2]
[379914605,1755439850123,-754.07,0.00020389,2]
[379914607,1755439850132,-151.0,0.00020389,2]
[379914609,1755439850141,-480.0,0.00020389,2]
[379914611,1755439850151,-713.96,0.0002039,2]
[379914613,1755439850160,-480.0,0.0002039,2]
[379914615,1755439850170,-480.0,0.0002039,2]
[379914617,1755439850181,-480.0,0.00020392,2]
[379914619,1755439850191,-480.0,0.00020392,2]
[379914621,1755439850201,-176.25933962,0.00020392,2]
[379914623,1755439850211,-480.0,0.00020392,2]
[379914625,1755439850221,-239.481308,0.00020392,2]
[379914627,1755439850230,-5719.11,0.00020392,2]
[379914629,1755439850240,-480.0,0.00020392,2]
[379914631,1755439850249,-164.471479,0.00020392,2]
[379914633,1755439850259,-731.95,0.00020392,2]
[379914635,1755439850268,-164.471479,0.00020392,2]
[379914637,1755439850279,-151.0,0.00020392,2]
[379914639,1755439850289,-250.9111,0.000204,2]
[379914641,1755439850299,-6674.86634361,0.00020403,2]
[379914643,1755439850309,-233.23989062,0.00020416,2]
[379914645,1755439850319,-420.5,0.00020427,2]
[379914647,1755439850329,-151.0,0.00020447,2]
[379914649,1755439850339,-151.0,0.00020447,2]
[379914651,1755439850348,-598.48,0.00020448,2]
[379914653,1755439850358,-227.68549792,0.00020466,2]
[379914655,1755439850367,-260.0,0.00020466,2]
[379914657,1755439850377,-411.93818841,0.00020473,2]
[379914659,1755439850386,-500.0,0.00020473,2]
[379914661,1755439850396,-500.0,0.00020473,2]
[379914663,1755439850405,-500.0,0.00020473,2]
[379914664,1755439850414,-500.0,0.00020473,2]
[379914666,1755439850424,-338.40442225,0.00020473,2]
[379914668,1755439850434,-500.0,0.00020473,2]
[379914670,1755439850443,-500.0,0.00020473,2]
[379914672,1755439850455,-500.0,0.00020473,2]
[379914674,1755439850464,-500.0,0.00020473,2]
[379914676,1755439850473,-500.0,0.00020473,2]
[379914678,1755439850483,-500.0,0.00020473,2]
[379914680,1755439850493,-500.0,0.00020473,2]
[379914682,1755439850502,-500.0,0.00020473,2]
[379914684,1755439850511,-500.0,0.00020473,2]
[379914686,1755439850521,-500.0,0.00020473,2]
[379914688,1755439850531,-500.0,0.00020473,2]
[379914690,1755439850540,-584.71166628,0.00020473,2]
[379914692,1755439850549,-500.0,0.00020473,2]
[379914694,1755439850559,-500.0,0.00020473,2]
[379914695,1755439850568,-500.0,0.00020473,2]
[379914697,1755439850577,-501.33102151,0.00020473,2]
[379914699,1755439850586,-500.0,0.00020473,2]
[379914700,1755439850596,-158.61449762,0.00020473,2]
[379914701,1755439850605,-500.0,0.00020473,2]
[379914702,1755439850614,-258.67006152,0.00020473,2]
[379914703,1755439850625,-160.6223693,0.00020473,2]
[379914704,1755439850635,-500.0,0.00020473,2]
[379914705,1755439850644,-158.20000211,0.00020473,2]
[379914706,1755439850653,-258.63436774,0.00020473,2]
[379914707,1755439850662,-340.42651408,0.00020473,2]
[379914708,1755439850671,-248.73521794,0.00020473,2]
[379914709,1755439850680,-158.62313276,0.00020473,2]
[379914710,1755439850690,-160.20015304,0.00020473,2]
[379914711,1755439850698,-500.0,0.00020473,2]
[379914712,1755439850707,-500.0,0.00020473,2]
[379914713,1755439850716,-500.0,0.00020473,2]
[379914714,1755439850725,-159.60508025,0.00020473,2]
[379914715,1755439850734,-500.0,0.00020473,2]
[379914716,1755439850743,-237.57852605,0.00020473,2]
[379914717,1755439850752,-500.0,0.00020473,2]
[379914718,1755439850761,-500.0,0.00020473,2]
[379914720,1755439850770,-500.0,0.00020473,2]
[379914722,1755439850779,-500.0,0.00020473,2]
[379914724,1755439850788,-188.65528262,0.00020473,2]
[379914726,1755439850798,-160.62292884,0.00020473,2]
[379914728,1755439850806,-340.84167788,0.00020473,2]
[379914730,1755439850815,-158.61775077,0.00020473,2]
[379914732,1755439850823,-158.60123121,0.00020473,2]
[379914734,1755439850833,-500.0,0.00020473,2]
[379914736,1755439850841,-400.51360892,0.00020473,2]
[379914738,1755439850850,-181.25139885,0.00020473,2]
[379914740,1755439850858,-415.34722731,0.00020473,2]
[379914742,1755439850867,-500.0,0.00020473,2]
[379914744,1755439850876,-500.0,0.00020473,2]
[379914745,1755439850885,-500.0,0.00020473,2]
[379914747,1755439850895,-501.74670769,0.00020473,2]
[379914749,1755439850904,-500.0,0.00020473,2]
[379914751,1755439850914,-500.0,0.00020473,2]
[379914753,1755439850922,-500.0,0.00020473,2]
[379914755,1755439850932,-158.4,0.00020473,2]
[379914767,1755439851039,-516.42439368,0.00020473,2]
[379914769,1755439851048,-500.0,0.00020473,2]
[379914771,1755439851057,-500.0,0.00020473,2]
[379914773,1755439851066,-500.0,0.00020473,2]
[379914775,1755439851075,-500.0,0.00020473,2]
[379914777,1755439851084,-500.0,0.00020473,2]
[379914779,1755439851093,-500.0,0.00020473,2]
[379914781,1755439851102,-500.17107343,0.00020473,2]
[379914783,1755439851112,-500.0,0.00020473,2]
[379914785,1755439851121,-500.0,0.00020473,2]
[379914786,1755439851130,-500.99412831,0.00020473,2]
[379914788,1755439851139,-217.04616223,0.00020473,2]
[379914790,1755439851149,-500.18170465,0.00020473,2]
[379914792,1755439851158,-500.16719209,0.00020473,2]
[379914794,1755439851168,-500.0,0.00020473,2]
[379914796,1755439851177,-500.0,0.00020473,2]
[379914798,1755439851188,-500.0,0.00020473,2]
[379914800,1755439851198,-500.0,0.00020473,2]
[379914802,1755439851207,-500.0,0.00020473,2]
[379914804,1755439851216,-500.0,0.00020473,2]
[379914806,1755439851226,-168.89872184,0.00020473,2]
[379914808,1755439851234,-500.0,0.00020473,2]
[379914810,1755439851243,-500.0,0.00020473,2]
[379914812,1755439851252,-500.0,0.00020473,2]
[379914814,1755439851261,-500.0,0.00020473,2]
[379914816,1755439851270,-500.0,0.00020473,2]
[379914818,1755439851281,-500.22350934,0.00020473,2]
[379914820,1755439851290,-521.8552445,0.00020473,2]
[379914821,1755439851300,-500.0,0.00020473,2]
[379914823,1755439851309,-500.0,0.00020473,2]
[379914825,1755439851318,-500.0,0.00020473,2]
[379914827,1755439851327,-445.5478031,0.00020473,2]
[379914829,1755439851336,-500.0,0.00020473,2]
[379914831,1755439851346,-500.0,0.00020473,2]
[379914833,1755439851355,-159.492842,0.00020473,2]
[379914835,1755439851365,-151.0,0.00020473,2]
[379914837,1755439851374,-151.0,0.00020473,2]
[379914839,1755439851384,-151.0,0.00020473,2]
[379914841,1755439851393,-151.0,0.00020473,2]
[379914843,1755439851403,-151.0,0.00020473,2]
[379914845,1755439851412,-848.25,0.00020487,2]
[379914847,1755439851422,-480.0,0.00020487,2]
[379914849,1755439851431,-975.09,0.00020487,2]
[379914851,1755439851441,-1328.54,0.00020487,2]
[379914853,1755439851451,-1067.92,0.00020487,2]
[379914855,1755439851464,-2687.29,0.00020487,2]
[379914857,1755439851473,-480.0,0.00020487,2]
[379914859,1755439851483,-151.0,0.00020498,2]
[379914861,1755439851494,-151.0,0.00020498,2]
[379914863,1755439851503,-151.0,0.00020498,2]
[379914865,1755439851512,-151.0,0.00020498,2]
[379914867,1755439851521,-151.0,0.00020498,2]
[379914869,1755439851531,-151.0,0.00020498,2]
[379914871,1755439851541,-151.0,0.00020498,2]
[379914873,1755439851551,-151.0,0.00020498,2]
[379914875,1755439851560,-244.746324,0.00020498,2]
[379914877,1755439851569,-168.0,0.00020499,2]
[379914879,1755439851578,-6817.95202413,0.000205,2]
[379914881,1755439851588,-169070.39419074,0.000205,2]
[379914883,1755439851597,-26533.57,0.000205,2]
[379914885,1755439851606,-151.0,0.000205,2]
[379914887,1755439851615,-52017.84539279,0.000205,2]
[379914925,1755439851973,-1174.26,0.00019019,2]
[379914927,1755439851984,-1174.26,0.00019293,2]
[379914929,1755439851994,-1174.26,0.00019567,2]
[379914931,1755439852003,-1174.26,0.00019841,2]
[379914932,1755439852013,-500.0,0.0002,2]
[379914934,1755439852022,-1174.26,0.00020115,2]
[379914937,1755439852032,-500.0,0.00020274,2]
[379914938,1755439852042,-1174.26,0.00020389,2]
[379914940,1755439852051,-543.11,0.00020487,2]
[379914942,1755439852061,-29425.56460721,0.000205,2]
[379914944,1755439852070,-335.54,0.000205,2]
[379914946,1755439852079,-151.0,0.000205,2]
[379914948,1755439852089,-151.0,0.000205,2]
[379914950,1755439852098,-151.0,0.000205,2]
[379914952,1755439852107,-151.0,0.000205,2]
[379914954,1755439852117,-151.0,0.000205,2]
[379914956,1755439852126,-151.0,0.000205,2]
[379914958,1755439852135,-151.0,0.000205,2]
[379914960,1755439852144,-151.0,0.000205,2]
[379914962,1755439852154,-151.0,0.000205,2]
[379914964,1755439852163,-151.0,0.000205,2]
[379914966,1755439852172,-151.0,0.000205,2]
[379914968,1755439852181,-151.0,0.000205,2]
[379914970,1755439852192,-151.0,0.000205,2]
[379914972,1755439852201,-151.0,0.000205,2]
[379914974,1755439852210,-151.0,0.000205,2]
[379914976,1755439852220,-151.0,0.000205,2]
[379914978,1755439852229,-151.0,0.000205,2]
[379914980,1755439852239,-151.0,0.000205,2]
[379914982,1755439852248,-249.77775,0.000205,2]
[379914984,1755439852258,-262.630271,0.000205,2]
[379914986,1755439852268,-151.0,0.000205,2]
[379914988,1755439852276,-151.0,0.000205,2]
[379914990,1755439852285,-151.0,0.000205,2]
[379914992,1755439852294,-151.0,0.000205,2]
[379914993,1755439852303,-151.0,0.000205,2]
[379914995,1755439852313,-273.692923,0.000205,2]
[379914997,1755439852322,-273.692923,0.000205,2]
[379914999,1755439852332,-262.630271,0.000205,2]
[379915001,1755439852342,-151.0,0.000205,2]
[379915003,1755439852352,-151.0,0.000205,2]
[379915005,1755439852361,-151.0,0.000205,2]
[379915007,1755439852370,-684.232308,0.000205,2]
[379915009,1755439852380,-684.232308,0.000205,2]
[379915011,1755439852390,-684.232308,0.000205,2]
[379915013,1755439852399,-279.103583,0.000205,2]
[379915015,1755439852408,-151.0,0.000205,2]
[379915017,1755439852417,-151.0,0.000205,2]
[379915019,1755439852428,-190.295796,0.000205,2]
[379915021,1755439852437,-190.295796,0.000205,2]
[379915023,1755439852447,-151.0,0.000205,2]
[379915025,1755439852459,-151.0,0.000205,2]
[379915027,1755439852469,-151.0,0.000205,2]
[379915029,1755439852478,-151.0,0.000205,2]
[379915031,1755439852487,-151.0,0.000205,2]
[379915033,1755439852497,-151.0,0.000205,2]
[379915035,1755439852507,-151.0,0.000205,2]
[379915037,1755439852516,-151.0,0.000205,2]
[379915039,1755439852527,-151.0,0.000205,2]
[379915041,1755439852537,-151.0,0.000205,2]
[379915043,1755439852547,-151.0,0.000205,2]
[379915045,1755439852556,-151.0,0.000205,2]
[379915047,1755439852565,-151.0,0.000205,2]
[379915049,1755439852574,-151.0,0.000205,2]
[379915051,1755439852583,-327.837231,0.000205,2]
[379915053,1755439852592,-327.837231,0.000205,2]
[379915055,1755439852602,-327.837231,0.000205,2]
[379915056,1755439852611,-327.837231,0.000205,2]
[379915058,1755439852620,-244.725761,0.000205,2]
[379915060,1755439852629,-151.0,0.000205,2]
[379915062,1755439852639,-151.0,0.000205,2]
[379915064,1755439852648,-151.0,0.000205,2]
[379915066,1755439852657,-244.220797,0.000205,2]
[379915068,1755439852666,-522.821847,0.000205,2]
[379915070,1755439852675,-522.821847,0.000205,2]
[379915072,1755439852684,-522.821847,0.000205,2]
[379915074,1755439852693,-522.821855,0.000205,2]
[379915076,1755439852703,-151.0,0.000205,2]
[379915089,1755439852815,-151.0,0.000205,2]
[379915091,1755439852824,-151.0,0.000205,2]
[379915093,1755439852833,-207.802528,0.000205,2]
[379915095,1755439852842,-151.0,0.000205,2]
[379915097,1755439852851,-151.0,0.000205,2]
[379915098,1755439852860,-151.0,0.000205,2]
[379915099,1755439852869,-151.0,0.000205,2]
[379915100,1755439852879,-151.0,0.000205,2]
[379915101,1755439852888,-408.92374979,0.000205,2]
[379915293,1755439855180,-417.94000621,0.000205,2]
[379915295,1755439855190,-309.841119,0.000205,2]
[379915297,1755439855201,-517.022637,0.000205,2]
[379915299,1755439855211,-826.863756,0.000205,2]
[379915301,1755439855221,-826.863757,0.000205,2]
[379915303,1755439855232,-151.0,0.000205,2]
[379915305,1755439855242,-293.269847,0.000205,2]
[379915307,1755439855252,-151.0,0.000205,2]
[379915330,1755439855489,-151.0,0.000205,2]
[379915333,1755439855502,-151.0,0.000205,2]
[379915335,1755439855511,-151.0,0.000205,2]
[379915337,1755439855522,-151.0,0.000205,2]
[379915339,1755439855532,-151.0,0.000205,2]
[379915341,1755439855541,-151.0,0.000205,2]
[379915343,1755439855551,-151.0,0.000205,2]
[379915345,1755439855561,-151.0,0.000205,2]
[379915347,1755439855570,-151.0,0.000205,2]
[379915348,1755439855579,-151.0,0.000205,2]
[379915350,1755439855589,-239.481308,0.000205,2]
[379915353,1755439855601,-239.481308,0.000205,2]
[379915354,1755439855611,-151.0,0.000205,2]
[379915356,1755439855620,-278.560994,0.000205,2]
[379915358,1755439855630,-278.560994,0.000205,2]
[379915360,1755439855641,-278.560994,0.000205,2]
[379915362,1755439855650,-169.834405,0.000205,2]
[379915365,1755439855663,-108.726589,0.000205,2]
[379915367,1755439855672,-164.471479,0.000205,2]
[379915369,1755439855681,-164.471479,0.000205,2]
[379915370,1755439855690,-164.471479,0.000205,2]
[379915371,1755439855699,-164.471479,0.000205,2]
[379915372,1755439855708,-151.0,0.000205,2]
[379915373,1755439855717,-151.0,0.000205,2]
[379915374,1755439855727,-168.0,0.00020504,2]
[379915375,1755439855736,-168.0,0.00020525,2]
[379915376,1755439855745,-168.0,0.00020527,2]
[379915377,1755439855755,-980.628,0.00020543,2]
[379915378,1755439855764,-637.0,0.00020543,2]
[379915379,1755439855773,-2153.0,0.00020543,2]
[379915380,1755439855782,-306.759495,0.00020543,2]
[379915429,1755439856250,-480.0,0.0001847,2]
[379915431,1755439856260,-481.63069439,0.00018471,2]
[379915433,1755439856269,-480.0,0.00018471,2]
[379915435,1755439856279,-480.0,0.00018474,2]
[379915437,1755439856289,-480.0,0.00018641,2]
[379915439,1755439856299,-463.27,0.00018915,2]
[379915441,1755439856308,-417.15472785,0.0001991,3]
[379915443,1755439856318,-151.0,0.00020548,2]
[379915445,1755439856328,-1679.0,0.00020548,2]
[379915447,1755439856337,-302.0,0.00020548,2]
[379915449,1755439856347,-258.36733466,0.00020548,2]
[379915451,1755439856356,-153.21392917,0.00020548,2]
[379915453,1755439856365,-267.3926271,0.00020548,2]
[379915455,1755439856375,-180.43841876,0.00020548,2]
[379915457,1755439856385,-500.0,0.00020548,2]
[379915459,1755439856395,-500.0,0.00020548,2]
[379915461,1755439856404,-213.07683927,0.00020548,2]
[379915463,1755439856413,-151.0,0.00020548,2]
[379915465,1755439856423,-151.0,0.00020548,2]
[379915467,1755439856432,-208.0,0.00020548,2]
[379915469,1755439856442,-227.68549792,0.00020548,2]
[379915471,1755439856453,-800.0,0.0002055,2]
[379915473,1755439856463,-480.0,0.00020556,2]
[379915475,1755439856473,-866.62,0.00020556,2]
[379915477,1755439856483,-480.0,0.00020556,2]
[379915479,1755439856492,-1709.23991788,0.00020556,2]
[379915481,1755439856504,-289.00347756,0.00020556,2]
[379915512,1755439856789,-453.0,0.00020556,2]
[379921503,1755439943783,203.3112737,0.00018,2]
[379921504,1755439947967,-150.49284078,0.00018195,2]
[379921505,1755439947995,-78.88917907,0.00018283,2]
[379921506,1755439950886,-224.62131133,0.00018283,2]
[379921507,1755439953626,-263.64364614,0.00018283,2]
[379921508,1755439956090,-480.0,0.00018283,2]
[379921509,1755439958121,-254.62464828,0.00018283,2]
[379921510,1755439960192,-166.75668753,0.00018283,2]
[379921511,1755439962339,-298.64208696,0.00018283,2]
[379921512,1755439965301,-347.43249248,0.00018283,2]
[379921513,1755439967270,-168.95489268,0.00018283,2]
[379921514,1755439969834,-151.0,0.00018283,2]
[379921515,1755439972328,-317.21816095,0.00018283,2]
[379921516,1755439974774,-164.87774405,0.00018283,2]
[379921517,1755439975855,648.90581593,0.00017463,2]
[379921518,1755439975877,3096.13711887,0.00017463,2]
[379921519,1755439978132,-252.51949924,0.00018283,2]
[379921520,1755439981323,-158.46569008,0.00018283,2]
[379921521,1755439983423,-226.28375376,0.00018283,2]
[379921522,1755439985972,-151.15445482,0.00018195,2]
[379921523,1755439985996,-130.3193702,0.00018283,2]
[379921524,1755439989033,-207.0137164,0.00018283,2]
[379921525,1755439991298,-234.63103739,0.00018283,2]
[379921526,1755440032297,6903.86288113,0.00017405,2]
[379921527,1755440032320,3096.13711887,0.00017405,2]
[379921528,1755440046848,5000.0,0.00018001,2]
[379921529,1755440064898,1903.86288113,0.00018001,2]
[379921530,1755440064922,3096.13711887,0.00018001,2]
[379921532,1755440082067,5000.0,0.00018001,2]
[379921534,1755440100068,1903.86288113,0.00018001,2]
[379921535,1755440100092,3096.13711887,0.00018001,2]
[379921553,1755440117268,5000.0,0.00018001,2]
[379921554,1755440135270,1903.86288113,0.00018001,2]
[379921555,1755440135293,2427.14393856,0.00018001,2]
[379921556,1755440138901,5336.0892766,0.0001746,2]
[379921557,1755440268159,176.033105,0.00017581,2]
[379921558,1755440452545,545.959816,0.00013699,2]
[379921562,1755440486576,1000.0,0.0001744,2]
[379921563,1755440490680,604.618812,0.0001744,2]
[379921564,1755440547245,162.54304105,0.00018268,2]
[379921565,1755440611167,587.18,0.00021,30]
[379921566,1755440634360,160.0,0.00018294,2]
[379921567,1755440641023,322.908926,0.00017913,2]
[379921568,1755440641348,483.9018014,0.00017914,2]
[379921569,1755440735429,5000.0,0.00018294,2]
[379921570,1755440753181,5000.0,0.00018294,2]
[379921571,1755440763126,1003.7219312,0.00017468,2]
[379921572,1755440770621,5000.0,0.00018294,2]
[379921573,1755440782189,3996.2780688,0.00017467,2]
[379921574,1755440782212,1736.3115234,0.00017467,2]
[379921575,1755440788407,5000.0,0.00018294,2]
[379921577,1755440805447,1191.51285861,0.00018294,2]
[379921584,1755440832804,-4339.15,0.00018296,2]
[379921585,1755440832831,-556.8,0.00018296,2]
[379921586,1755440832855,-300.0,0.00018367,2]
[379921587,1755440832880,-2496.51452924,0.00018368,2]
[379921592,1755440845911,150.0,0.00015815,30]